bitfinex/quotes_SOLUSD_20251009
["timestamp","ask_amount","ask_price","bid_price","bid_amount"]
[1760000701878,2790.8809512,221.1,221.09,19.99999999]
[1760000702066,2790.8809512,221.1,221.09,20.68999999]
[1760000702389,2795.40379154,221.1,221.09,19.99999999]
[1760000702571,2795.40379154,221.1,221.07,52.75999999]
[1760000702759,6.56318827,221.08,221.07,52.75999999]
[1760000703280,6.56318827,221.08,221.05,53.46999999]
[1760000704183,4.5234541,221.07,221.05,53.46999999]
[1760000704366,2795.40385016,221.1,221.05,53.46999999]
[1760000704570,6.56318827,221.09,221.08,19.99999999]
[1760000704787,7.27318827,221.09,221.0,0.69]
[1760000704957,6.56318827,221.03,221.01,32.78]
[1760000705580,25.13,220.96,220.93,4.52621455]
[1760000705889,2829.32515272,221.1,220.94,32.76]
[1760000705890,159.93,220.95,220.94,32.76]
[1760000706056,134.8,220.95,220.94,32.76]
[1760000706256,4.52570601,220.96,220.91,32.76]
[1760000706964,6.56318827,220.93,220.82,0.1]
[1760000707156,6.56318827,220.87,220.82,0.1]
[1760000707585,0.71,220.87,220.82,0.1]
[1760000707765,6.56318827,220.85,220.82,0.1]
[1760000708172,6.56318827,220.88,220.83,0.69]
[1760000708379,6.56318827,220.85,220.82,0.1]
[1760000709274,4.52686181,220.91,220.82,0.79]
[1760000709481,6.56318827,220.89,220.83,0.69]
[1760000709660,4.52677262,220.91,220.84,6.56318827]
[1760000710368,4.52677262,220.91,220.83,0.69]
[1760000710774,6.56318827,220.91,220.83,5.21832484]
[1760000711170,6.56318827,220.91,220.83,0.69]
[1760000712187,6.56318827,220.89,220.82,32.96]
[1760000712385,4.52775513,220.86,220.82,32.96]
[1760000712873,6.56318827,220.87,220.82,33.65]
[1760000713183,11.09074397,220.87,220.82,33.65]
[1760000713389,134.8,220.86,220.82,33.65]
[1760000713784,214.2,220.85,220.82,33.65]
[1760000714582,214.2,220.85,220.82,38.1785606]
[1760000714968,214.2,220.85,220.82,33.65]
[1760000715166,214.2,220.85,220.82,32.96]
[1760000716586,214.2,220.85,220.82,33.65]
[1760000717292,214.2,220.85,220.83,0.69]
[1760000717479,214.2,220.85,220.82,37.48853021]
[1760000717480,214.2,220.85,220.84,7.25318827]
[1760000717789,214.2,220.85,220.83,6.56318827]
[1760000717987,214.2,220.85,220.84,0.69]
[1760000718177,214.2,220.85,220.82,37.48853021]
[1760000718360,214.2,220.85,220.83,6.56318827]
[1760000718979,0.71,220.9,220.83,6.56318827]
[1760000720286,11.09037423,220.89,220.82,39.52318827]
[1760000720490,0.71,220.9,220.82,44.05172956]
[1760000720680,6.56318827,220.89,220.82,44.05172956]
[1760000721569,6.56318827,220.84,220.82,0.1]
[1760000722068,6.56318827,220.85,220.82,0.1]
[1760000722268,4.52816518,220.84,220.82,0.1]
[1760000722480,0.71,220.85,220.82,0.1]
[1760000722685,5.23797332,220.85,220.82,0.1]
[1760000723203,0.71,220.84,220.82,0.1]
[1760000723576,22.41106197,220.85,220.82,0.1]
[1760000723879,0.71,220.84,220.82,0.1]
[1760000724091,0.71,220.83,220.82,0.1]
[1760000724399,11.8015585,220.83,220.82,0.1]
[1760000724782,5.23837023,220.83,220.82,0.1]
[1760000724982,23.12248409,220.83,220.73,0.1]
[1760000725171,6.56318827,220.79,220.73,0.1]
[1760000725372,214.2,220.82,220.74,0.67]
[1760000725597,214.2,220.82,220.79,6.56318827]
[1760000725787,214.2,220.82,220.79,40.03318827]
[1760000725981,214.2,220.82,220.79,33.47]
[1760000726181,214.2,220.82,220.79,32.8]
[1760000726893,214.2,220.82,220.79,33.47]
[1760000727090,214.2,220.82,220.79,39.36318827]
[1760000727374,214.2,220.82,220.79,44.5623429]
[1760000727677,214.2,220.82,220.79,39.36318827]
[1760000728089,27.47305512,221.03,220.79,39.36318827]
[1760000728090,4.52468214,221.01,220.82,31.67647521]
[1760000728292,0.7,220.97,220.9,6.56318827]
[1760000728500,5.22553793,220.97,220.91,32.9]
[1760000728885,7.26318827,221.02,220.95,6.56318827]
[1760000729088,0.7,221.02,220.97,6.56318827]
[1760000729275,0.7,221.01,220.92,10.87647521]
[1760000729478,0.7,221.01,220.9,36.64425944]
[1760000729479,0.7,221.01,220.95,6.56318827]
[1760000730076,0.7,221.04,221.0,6.56318827]
[1760000730473,0.7,221.03,220.98,32.9]
[1760000730788,0.7,221.03,220.97,6.56318827]
[1760000730789,0.7,221.02,220.97,32.9]
[1760000730984,15.83280556,221.06,220.97,32.9]
[1760000730985,6.56318827,220.99,220.97,32.9]
[1760000731183,0.7,220.99,220.97,32.9]
[1760000731390,0.7,220.99,220.95,32.9]
[1760000732178,0.7,220.98,220.95,32.88]
[1760000732401,6.56214985,220.99,220.95,32.88]
[1760000732802,7.26214985,220.99,220.95,32.88]
[1760000733113,4.40707338,220.96,220.91,32.88]
[1760000733400,4.40707338,220.92,220.89,32.9]
[1760000733581,5.10707338,220.92,220.89,32.9]
[1760000733786,0.7,220.91,220.89,32.9]
[1760000733982,5.10707338,220.91,220.88,32.9]
[1760000734282,4.40707338,220.91,220.88,32.9]
[1760000734486,20.8,220.96,220.88,32.9]
[1760000734487,4.40707338,220.93,220.88,32.9]
[1760000734691,5.22652543,220.92,220.88,32.9]
[1760000735104,4.52652543,220.92,220.88,32.9]
[1760000735315,5.22652543,220.92,220.88,32.9]
[1760000735886,4.40707338,220.93,220.88,32.9]
[1760000736132,9.63341752,220.93,220.88,32.9]
[1760000736409,0.7,220.98,220.9,4.40707338]
[1760000736617,0.7,220.98,220.88,32.9]
[1760000736618,5.10707338,220.98,220.88,32.9]
[1760000736919,5.10707338,220.98,220.89,4.40707338]
[1760000737312,4.52550119,220.97,220.89,4.40707338]
[1760000737709,4.52550119,220.97,220.89,8.93402041]
[1760000737901,8.93257457,220.97,220.89,8.93402041]
[1760000738406,5.10707338,220.98,220.89,8.93402041]
[1760000738604,9.63241473,220.98,220.89,8.93402041]
[1760000738796,5.22534135,220.98,220.89,8.93402041]
[1760000738999,9.63241473,220.98,220.89,8.93402041]
[1760000739214,5.22534135,220.98,220.89,8.93402041]
[1760000739498,5.22530937,220.98,220.89,8.93402041]
[1760000739910,9.63238275,220.98,220.9,37.36677451]
[1760000740219,9.63238275,220.98,220.9,32.84]
[1760000740396,4.40707338,220.97,220.9,32.84]
[1760000742015,4.40707338,220.91,220.84,4.52796499]
[1760000742190,4.40707338,220.91,220.85,32.82]
[1760000742914,20.8,220.99,220.85,32.82]
[1760000743115,4.40707338,220.92,220.85,32.82]
[1760000743415,4.40707338,220.86,220.8,10.87647521]
[1760000743715,4.40707338,220.84,220.81,32.8]
[1760000743915,4.40707338,220.84,220.77,15.40590518]
[1760000744108,4.40707338,220.82,220.75,4.52986648]
[1760000744422,4.40707338,220.8,220.73,18.48826515]
[1760000744727,4.40707338,220.8,220.74,32.84]
[1760000745232,4.40707338,220.8,220.73,18.48826515]
[1760000745433,4.40707338,220.8,220.75,32.84]
[1760000745818,5.11707338,220.8,220.75,32.84]
[1760000746142,4.40707338,220.8,220.75,37.36982221]
[1760000747537,0.71,220.84,220.75,37.36982221]
[1760000747739,4.40707338,220.81,220.75,37.36982221]
[1760000748839,0.71,220.82,220.75,37.36982221]
[1760000749015,4.40707338,220.81,220.75,37.36982221]
[1760000750816,20.8,220.88,220.79,20.8]
[1760000750817,0.71,220.88,220.79,20.8]
[1760000751043,4.40707338,220.89,220.8,37.18707338]
[1760000751238,4.40707338,220.89,220.81,4.52878039]
[1760000751442,4.40707338,220.89,220.81,15.85073138]
[1760000751739,4.40707338,220.92,220.84,4.40707338]
[1760000751942,5.11707338,220.92,220.85,32.82]
[1760000752643,4.40707338,220.9,220.81,4.52878039]
[1760000752830,4.40707338,220.86,220.82,32.82]
[1760000753031,5.11707338,220.88,220.82,32.82]
[1760000753236,5.11707338,220.88,220.82,37.34842849]
[1760000753439,0.71,220.88,220.82,41.75550187]
[1760000754943,5.23739273,220.88,220.82,41.75550187]
[1760000755149,5.23739273,220.88,220.82,37.34842849]
[1760000755341,5.23739273,220.88,220.83,32.78]
[1760000756055,0.72,220.87,220.83,32.78]
[1760000756342,5.12707338,220.89,220.83,32.78]
[1760000756521,5.12707338,220.89,220.84,32.76]
[1760000756838,0.72,220.88,220.82,4.40707338]
[1760000757020,134.8,220.87,220.85,32.76]
[1760000757217,134.8,220.87,220.78,11.32348944]
[1760000757218,0.72,220.86,220.72,11.32642632]
[1760000757426,0.72,220.85,220.78,32.76]
[1760000757721,15.84660695,220.87,220.75,4.40707338]
[1760000757722,4.40707338,220.82,220.79,32.76]
[1760000758039,0.72,220.9,220.81,4.40707338]
[1760000758219,0.72,220.9,220.82,4.40707338]
[1760000758424,4.40707338,220.89,220.79,32.76]
[1760000759347,5.12707338,220.89,220.8,4.5289855]
[1760000759530,5.12707338,220.89,220.81,10.87647521]
[1760000759844,4.40707338,220.91,220.81,10.87647521]
[1760000760065,4.40707338,220.91,220.83,4.40707338]
[1760000760258,4.40707338,220.91,220.84,32.8]
[1760000760556,5.2467033,220.92,220.85,4.52796015]
[1760000760751,0.72,220.92,220.84,37.32814213]
[1760000760949,4.40707338,220.89,220.85,32.8]
[1760000761860,5.12707338,220.89,220.85,32.8]
[1760000762069,5.12707338,220.89,220.86,32.78]
[1760000762756,0.72,220.88,220.82,4.52856193]
[1760000763146,4.40707338,220.89,220.82,4.52856193]
[1760000763357,0.72,220.9,220.82,15.8500002]
[1760000763570,4.40707338,220.89,220.83,32.76]
[1760000763742,20.8,220.94,220.84,4.40707338]
[1760000763743,4.40707338,220.93,220.84,4.40707338]
[1760000763946,4.40707338,220.91,220.84,4.40707338]
[1760000764364,4.40707338,220.91,220.85,4.52796015]
[1760000765675,22.62545816,220.99,220.85,4.52796015]
[1760000765676,214.2,220.9,220.86,4.40707338]
[1760000765877,214.2,220.9,220.85,15.84786053]
[1760000765878,79.4,220.89,220.88,4.40707338]
[1760000766198,219.32707338,221.0,220.89,10.87647521]
[1760000766382,214.2,220.99,220.92,4.40707338]
[1760000766552,214.2,220.99,220.93,32.74]
[1760000766752,134.8,220.98,220.94,4.40707338]
[1760000767558,134.8,220.98,220.94,8.93299181]
[1760000768474,134.8,220.98,220.93,32.74]
[1760000768775,134.8,220.98,220.93,37.14707338]
[1760000768951,139.32530885,220.98,220.93,37.14707338]
[1760000769154,134.8,220.98,220.93,41.67332733]
[1760000769354,134.8,220.98,220.94,4.40707338]
[1760000769555,134.8,220.98,220.94,8.93316202]
[1760000770079,134.8,220.98,220.94,4.52608864]
[1760000770275,134.8,220.98,220.95,32.72]
[1760000770576,0.72,220.97,220.89,31.67647521]
[1760000770790,4.40707338,220.95,220.89,36.20341785]
[1760000770981,4.40707338,220.95,220.9,32.7]
[1760000771157,134.8,220.98,220.91,4.40707338]
[1760000771356,139.32529718,220.98,220.92,4.40707338]
[1760000771755,144.45237056,220.98,220.93,32.7]
[1760000771954,0.72,220.97,220.93,32.7]
[1760000773871,143.73239928,220.98,220.93,32.7]
[1760000774063,0.72,220.96,220.93,32.7]
[1760000775410,0.72,220.96,220.93,37.22631312]
[1760000775588,134.8,220.98,220.93,37.22631312]
[1760000775790,135.52,220.98,220.93,37.22631312]
[1760000776106,0.72,220.97,220.93,37.22631312]
[1760000776977,134.8,220.98,220.93,37.22631312]
[1760000777211,135.52,220.98,220.93,37.22631312]
[1760000777688,134.8,220.98,220.93,37.22631312]
[1760000778007,0.72,221.07,220.97,25.20707338]
[1760000778213,0.72,221.07,221.0,4.40707338]
[1760000778509,0.72,221.07,221.0,13.51915032]
[1760000778677,0.72,221.07,221.01,20.8]
[1760000778875,0.72,221.07,221.02,32.68]
[1760000779070,0.72,221.09,221.02,32.68]
[1760000779271,2790.8809512,221.1,221.05,20.8]
[1760000779473,2790.8809512,221.1,221.09,25.32304491]
[1760000779671,2698.98327013,221.1,221.09,36.19952012]
[1760000779895,2602.1859988,221.1,221.09,40.6065935]
[1760000780090,2533.1148354,221.1,221.09,43.77448484]
[1760000780399,2377.60869401,221.1,221.09,68.18155821]
[1760000780592,2350.47637101,221.1,221.09,68.18155821]
[1760000780796,2285.92518181,221.1,221.09,68.18155821]
[1760000780976,2151.92947148,221.1,221.09,68.18155821]
[1760000781179,2038.93034778,221.1,221.09,100.96155821]
[1760000781373,1953.11470798,221.1,221.09,100.96155821]
[1760000781575,1953.11470798,221.1,221.09,105.36863159]
[1760000781779,1810.8916921,221.1,221.09,105.36863159]
[1760000781996,1576.05639091,221.1,221.09,105.36863159]
[1760000782181,1283.04852982,221.1,221.09,114.55155821]
[1760000782500,1198.31135624,221.1,221.09,114.55155821]
[1760000783013,1013.92047525,221.1,221.09,68.18155821]
[1760000783178,882.07084488,221.1,221.09,68.18155821]
[1760000783387,816.40310423,221.1,221.09,63.77448483]
[1760000783595,816.40310423,221.1,221.09,96.51448483]
[1760000783915,789.28524176,221.1,221.09,68.18155821]
[1760000784078,762.16737929,221.1,221.09,100.92155821]
[1760000784279,762.16737929,221.1,221.09,100.94155821]
[1760000784482,735.04951682,221.1,221.09,100.94155821]
[1760000784680,707.11889192,221.1,221.09,100.94155821]
[1760000784906,680.00102945,221.1,221.09,100.94155821]
[1760000785206,656.9072084,221.1,221.09,100.94155821]
[1760000785380,629.78934593,221.1,221.09,100.94155821]
[1760000785576,602.89180425,221.1,221.09,100.94155821]
[1760000785790,541.94735156,221.1,221.09,100.94155821]
[1760000786293,421.71272053,221.1,221.09,100.94155821]
[1760000786496,389.29969784,221.1,221.09,100.94155821]
[1760000786897,360.44087837,221.1,221.09,100.94155821]
[1760000787200,290.93904817,221.1,221.09,100.94155821]
[1760000787370,263.81750721,221.1,221.09,100.94155821]
[1760000787574,263.81750721,221.1,221.09,96.53448483]
[1760000787774,236.69596625,221.1,221.09,100.94155821]
[1760000788195,236.69596625,221.1,221.09,107.18659674]
[1760000788196,151.96957471,221.1,221.09,107.18659674]
[1760000788374,150.89110849,221.1,221.09,107.18659674]
[1760000788588,123.76956753,221.1,221.09,107.18659674]
[1760000788976,96.64802657,221.1,221.09,107.18659674]
[1760000789188,37.96470977,221.1,221.09,107.18659674]
[1760000789383,10.84929908,221.1,221.09,107.18659674]
[1760000789584,10.84929908,221.1,221.09,111.69697689]
[1760000789889,0.2,221.19,221.09,111.69697689]
[1760000789890,0.2,221.19,221.18,31.67647521]
[1760000790098,0.2,221.19,221.18,69.21566903]
[1760000791588,0.2,221.19,221.18,36.53566903]
[1760000791784,0.2,221.19,221.18,64.78859565]
[1760000791979,0.2,221.19,221.18,32.12859565]
[1760000792184,0.87,221.19,221.12,4.39362749]
[1760000792386,0.87,221.19,221.15,10.87647521]
[1760000792581,0.2,221.19,221.18,20.8]
[1760000792781,0.2,221.19,221.18,53.46]
[1760000792995,0.2,221.19,221.18,32.66]
[1760000793302,0.87,221.19,221.18,32.66]
[1760000793687,0.87,221.19,221.09,26.87455875]
[1760000793912,6.54541931,221.16,221.05,40.51565818]
[1760000794203,0.2,221.19,221.09,20.8]
[1760000794517,0.67,221.18,221.17,20.8]
[1760000794724,0.67,221.18,221.17,53.48]
[1760000795225,0.67,221.18,221.1,21.25228403]
[1760000795404,0.67,221.17,221.14,20.8]
[1760000795585,0.67,221.17,221.12,10.87647521]
[1760000795586,0.67,221.16,221.15,53.46]
[1760000795784,6.54541931,221.16,221.08,10.87647521]
[1760000795982,0.67,221.15,221.06,10.87647521]
[1760000796208,7.21541931,221.14,221.07,32.68]
[1760000796488,0.67,221.13,221.1,20.8]
[1760000796694,0.67,221.12,221.1,20.8]
[1760000796887,6.54541931,221.13,221.05,20.51565819]
[1760000797104,6.54541931,221.13,221.06,32.68]
[1760000797404,16.02357781,221.19,221.06,32.68]
[1760000797405,0.67,221.15,221.1,20.8]
[1760000797609,0.67,221.14,221.11,53.48]
[1760000797908,0.67,221.13,221.12,32.68]
[1760000800996,7.21541931,221.13,221.01,10.87647521]
[1760000801196,0.67,221.12,221.03,17.42189452]
[1760000801403,0.67,221.12,221.08,20.8]
[1760000801711,0.67,221.12,221.09,32.64]
[1760000802004,0.67,221.11,221.09,32.64]
[1760000802389,0.67,221.15,221.12,20.8]
[1760000802595,0.67,221.14,221.13,32.64]
[1760000804504,0.71,221.18,221.13,32.64]
[1760000804711,0.71,221.17,221.13,32.64]
[1760000804911,0.91,221.19,221.16,20.8]
[1760000805211,0.91,221.19,221.17,32.64]
[1760000805514,0.71,221.18,221.17,32.64]
[1760000807199,0.2,221.19,221.17,32.64]
[1760000807400,0.2,221.19,221.17,33.09214088]
[1760000807618,0.2,221.19,221.17,32.64]
[1760000807993,0.2,221.19,221.18,17.42189452]
[1760000808400,0.2,221.19,221.18,17.87401496]
[1760000809209,0.2,221.19,221.18,37.87401495]
[1760000811108,0.2,221.19,221.18,17.87401496]
[1760000811512,0.2,221.19,221.18,11.32859565]
[1760000811716,0.2,221.19,221.18,17.87401496]
[1760000812110,0.2,221.19,221.18,37.87401495]
[1760000812503,0.2,221.19,221.18,44.11905348]
[1760000812698,0.2,221.19,221.18,37.57363417]
[1760000812900,0.2,221.19,221.18,56.30693305]
[1760000813299,0.2,221.19,221.18,56.75905349]
[1760000813513,0.2,221.19,221.18,50.21363418]
[1760000813719,0.2,221.19,221.18,50.51401496]
[1760000814025,0.2,221.19,221.18,17.87401496]
[1760000814319,0.2,221.19,221.18,37.87401495]
[1760000814822,0.2,221.19,221.18,50.51401496]
[1760000815024,0.2,221.19,221.18,43.96859565]
[1760000815405,0.2,221.19,221.18,50.51401496]
[1760000815808,0.89,221.19,221.14,10.87647521]
[1760000816017,0.69,221.18,221.15,10.87647521]
[1760000816206,0.2,221.19,221.15,43.51647521]
[1760000816406,0.89,221.19,221.18,20.8]
[1760000816730,0.2,221.19,221.18,53.44]
[1760000817018,0.2,221.19,221.14,10.87647521]
[1760000817223,0.2,221.19,221.18,20.8]
[1760000817427,0.2,221.19,221.18,32.64]
[1760000817806,0.89,221.19,221.18,32.64]
[1760000819123,0.89,221.19,221.17,20.8]
[1760000819319,0.89,221.19,221.18,32.64]
[1760000820327,0.2,221.19,221.18,50.06189452]
[1760000821414,0.2,221.19,221.18,10.87647521]
[1760000821619,0.2,221.19,221.18,43.49647521]
[1760000821918,0.89,221.19,221.11,10.87647521]
[1760000822110,0.69,221.18,221.13,10.87647521]
[1760000822426,0.69,221.17,221.16,20.8]
[1760000822634,0.69,221.17,221.16,53.42]
[1760000822939,0.2,221.19,221.16,53.42]
[1760000823104,0.69,221.18,221.16,53.42]
[1760000823419,0.69,221.18,221.1,19.99999999]
[1760000823420,0.69,221.17,221.1,19.99999999]
[1760000823613,6.54541931,221.15,221.05,6.54541931]
[1760000823810,6.54541931,221.15,221.02,39.75038015]
[1760000823811,0.69,221.14,221.06,32.62]
[1760000824012,0.2,221.19,221.02,35.24]
[1760000824013,7.23541931,221.13,221.02,35.24]
[1760000824212,4.72105202,221.19,221.03,32.62]
[1760000824213,6.54541931,221.11,221.03,32.62]
[1760000824416,0.69,221.1,221.03,32.62]
[1760000824620,0.69,221.1,221.02,35.24]
[1760000824819,0.69,221.09,221.06,20.8]
[1760000825019,0.69,221.09,221.03,32.62]
[1760000825020,0.69,221.08,221.07,32.62]
[1760000826527,0.69,221.08,221.05,20.8]
[1760000826719,6.54541931,221.1,221.07,32.62]
[1760000827119,6.54541931,221.1,221.05,20.8]
[1760000827326,0.69,221.09,221.06,32.62]
[1760000827522,0.69,221.08,221.06,32.62]
[1760000827733,0.69,221.07,221.06,32.62]
[1760000827920,6.54541931,221.1,221.06,32.62]
[1760000828239,6.54541931,221.1,221.0,13.33291072]
[1760000828240,0.69,221.07,220.97,6.54541931]
[1760000828413,7.23541931,221.06,221.01,20.8]
[1760000828613,0.69,221.05,221.04,20.8]
[1760000828817,0.69,221.05,221.02,32.64]
[1760000829025,0.69,221.04,221.02,32.64]
[1760000829335,6.54541931,221.06,221.02,53.44]
[1760000829336,0.69,221.03,221.02,53.44]
[1760000829840,0.69,221.03,221.02,20.8]
[1760000830138,6.54541931,221.06,221.02,53.44]
[1760000830139,0.69,221.06,221.02,53.44]
[1760000830324,0.69,221.05,221.04,20.8]
[1760000832525,0.69,221.05,221.04,53.44]
[1760000832943,0.69,221.05,220.95,26.74124448]
[1760000832944,7.23541931,221.05,220.9,35.26]
[1760000833123,7.23541931,221.05,220.8,53.64612598]
[1760000833124,0.69,221.04,220.85,10.87647521]
[1760000833324,0.69,221.04,220.96,6.54541931]
[1760000833529,0.69,221.04,220.98,27.34541931]
[1760000833829,7.23541931,221.03,220.99,32.64]
[1760000834027,7.23541931,221.03,220.98,20.8]
[1760000834028,0.69,221.02,220.98,20.8]
[1760000834252,0.69,221.02,220.99,32.64]
[1760000834444,0.69,221.01,221.0,32.64]
[1760000834736,0.69,221.04,221.0,32.64]
[1760000834941,0.69,221.03,221.01,32.64]
[1760000835114,6.54541931,221.05,221.02,32.64]
[1760000835535,6.54541931,221.03,220.91,20.00654076]
[1760000835848,6.56049036,221.01,220.92,39.20049036]
[1760000836144,0.69,221.0,220.95,20.8]
[1760000836345,2.75207692,221.03,220.96,32.64]
[1760000836551,0.69,221.02,220.96,32.64]
[1760000838044,3.44207692,221.02,220.96,32.64]
[1760000838451,0.69,221.01,220.96,32.64]
[1760000838635,0.69,221.0,220.96,32.64]
[1760000838947,0.69,220.99,220.96,32.64]
[1760000839131,0.69,221.01,220.96,32.64]
[1760000839335,0.69,221.0,220.94,20.8]
[1760000839948,0.69,221.0,220.95,32.64]
[1760000840327,2.75207692,221.03,220.95,32.64]
[1760000840328,0.69,221.03,220.95,35.39207692]
[1760000840539,3.44207692,221.06,220.97,2.75207692]
[1760000840744,3.44207692,221.06,220.98,32.64]
[1760000841049,2.75207692,221.06,220.98,32.64]
[1760000841273,0.69,221.05,220.98,32.64]
[1760000841553,0.69,221.04,220.98,32.64]
[1760000842137,0.69,221.06,220.98,32.64]
[1760000844037,0.69,221.09,220.98,53.44]
[1760000844241,0.69,221.09,221.01,23.55207692]
[1760000844439,0.69,221.09,221.02,32.64]
[1760000844844,0.69,221.08,220.98,21.25252964]
[1760000845047,2.75207692,221.05,220.98,20.8]
[1760000845244,0.7,221.11,221.02,23.55207692]
[1760000845443,3.45207692,221.11,221.03,32.64]
[1760000845747,3.45207692,221.11,221.03,6.89936206]
[1760000846653,2.75207692,221.11,221.03,6.89936206]
[1760000846972,0.7,221.1,221.03,6.89936206]
[1760000847341,0.7,221.1,221.04,32.64]
[1760000847953,0.7,221.09,221.04,32.64]
[1760000848143,0.7,221.08,221.04,32.64]
[1760000848553,2.75207692,221.11,221.04,32.64]
[1760000848771,0.7,221.12,221.04,32.64]
[1760000848953,0.7,221.11,221.04,32.64]
[1760000849831,0.7,221.1,221.04,32.64]
[1760000850040,0.7,221.1,221.05,32.64]
[1760000850442,2.75207692,221.08,220.98,6.24503853]
[1760000850671,2.75207692,221.06,220.99,32.64]
[1760000850879,3.45207692,221.06,220.99,32.64]
[1760000851248,0.7,221.06,220.99,35.39207692]
[1760000851450,2.75207692,221.08,220.99,35.39207692]
[1760000851692,2.75207692,221.08,220.99,2.75207692]
[1760000851986,2.7508457,221.08,221.0,32.64]
[1760000852280,0.7,221.12,221.04,20.8]
[1760000852483,2.46054303,221.12,221.04,20.8]
[1760000852982,0.7,221.15,221.09,1.76054303]
[1760000853150,2.46054303,221.17,221.1,32.64]
[1760000854366,0.7,221.17,221.1,34.40054303]
[1760000854686,0.2,221.19,221.12,1.76054303]
[1760000854985,0.2,221.19,221.14,1.76054303]
[1760000855146,0.2,221.19,221.15,32.64]
[1760000855974,0.2,221.19,221.12,20.8]
[1760000856145,0.2,221.19,221.14,1.76054303]
[1760000856745,0.2,221.19,221.16,22.56054303]
[1760000856945,0.2,221.19,221.18,1.76054303]
[1760000857163,0.2,221.19,221.18,34.40054303]
[1760000858258,0.2,221.19,221.18,32.64]
[1760000858962,0.2,221.19,221.18,34.40054303]
[1760000859768,0.2,221.19,221.18,53.44]
[1760000860864,0.2,221.19,221.14,13.41504052]
[1760000861061,0.2,221.19,221.15,34.40054303]
[1760000861264,0.2,221.19,221.15,32.64]
[1760000861465,0.2,221.19,221.16,32.62]
[1760000862548,0.2,221.19,221.17,4.52140887]
[1760000862744,0.2,221.19,221.17,6.73409278]
[1760000862957,0.2,221.19,221.18,20.8]
[1760000863169,0.2,221.19,221.18,55.18054303]
[1760000863366,0.2,221.19,221.18,20.8]
[1760000863564,0.9,221.19,221.18,32.62]
[1760000865460,0.9,221.19,221.11,33.86691807]
[1760000865653,0.9,221.19,221.12,32.62]
[1760000865856,0.9,221.19,221.12,48.44850939]
[1760000866056,0.9,221.19,221.13,1.76054303]
[1760000867453,0.9,221.19,221.12,48.44850939]
[1760000867454,0.69,221.18,221.12,37.14243125]
[1760000867673,1.76054303,221.18,221.12,37.14243125]
[1760000867875,0.69,221.17,221.08,1.76054303]
[1760000868174,2.45054303,221.16,221.09,32.62]
[1760000868350,0.69,221.15,221.07,32.10863527]
[1760000868554,1.76054303,221.12,221.05,4.52386337]
[1760000868869,0.69,221.11,221.06,32.62]
[1760000869176,0.69,221.11,221.07,32.62]
[1760000869567,0.69,221.1,221.07,32.62]
[1760000869961,0.69,221.1,221.07,37.14338443]
[1760000870364,0.69,221.13,221.07,32.62]
[1760000871457,0.69,221.12,221.07,32.62]
[1760000871684,25.32201585,221.15,221.04,35.28]
[1760000871685,1.76054303,221.1,221.04,35.28]
[1760000871979,0.69,221.09,221.05,32.62]
[1760000872166,0.69,221.08,221.05,32.62]
[1760000872485,0.69,221.07,221.05,32.62]
[1760000873251,2.45054303,221.1,221.05,32.62]
[1760000873484,0.69,221.09,221.06,32.62]
[1760000873653,0.69,221.08,221.06,32.62]
[1760000873856,0.69,221.07,221.06,32.62]
[1760000874051,0.69,221.07,221.04,35.28]
[1760000874357,0.69,221.06,221.05,32.62]